Workbook

Sheet Motorisation
B1: First 162 | D1: La plupart des formules de cet onglet sont tirées du fichier de Franck A. (CalculMotorisationSimplifiée.xsl), formules et calculs vérifiés tous ok le 14/07/2015
B3: moteur | E3: accu | I3: Vérifications | N3: Boucher | O3: =O4/(12^5*1000^3) -> 4.01877572e-15
B4: Type de moteur | C4: 3.5 | E4: Type d'accu | F4: 3.7 | I4: KV du moteur chosi | K4: 700 | N4: K = | O4: =F33 -> 1
B5: Rendement | C5: 85 | E5: Nombre d'éléments | F5: 4 | I5: Masse du moteur choisi (g) | K5: 200
B6: Puissance massique (W/kg) | C6: 200 | E6: Etat de l'accu | F6: 1/3 du vol | I6: Intensité max du moteur choisi (A) | K6: 45
B7: Puissance moteur min (W) | C7: =ROUND((Puissance_Massique_Moteur*(O7/1000)),0) -> 354 | E7: Tension moy calculée (V) | F7: =F4*F5 -> 14.8 | I7: Puissance max du moteur choisi (W) | K7: 665 | N7: Masse du modèle (g) | O7: 1770
B8: Puissance moteur sécu (W) | C8: =ROUND(((((Puissance_Massique_Moteur*(O7/1000))*1.02)*100)/Rendement_Moteur),0) -> 425 | E8: Ajustement de la tension (V) | F8: 14.8 | I8: Capacité de l'accu choisi (mAh) | K8: 4500 | N8: Masse de l'ESC (g) | O8: 70
B9: Masse moteur min (g) | C9: =ROUND(C8/C4,0) -> 121 | E9: Taux de décharge max (C) | F9: 35 | I9: Intensité de décharge constante théorique (A) | K9: =Capacite_Accu_Choisie*Taux_Decharge_Accu/1000 -> 157.5 | L9: A | N9: Surface alaire (dm²) | O9: 42
B10: Intensité min moteur (A) | C10: =ROUND((F10*1.02),1) -> 29.3 | E10: Intensité moyenne (A) | F10: =ROUND(C8/Tension_Moyenne,1) -> 28.7 | I10: Intensité de décharge constante conseillée (A) | K10: =I_Const_Theorique*(2/3) -> 105 | L10: A | N10: Masse totale du modèle (g) | O10: =Masse_modele+Masse_Reelle_Accu+Masse_Moteur_Choisie+Masse_ESC -> 2500
B11: Intensité sécur moteur (A) | C11: =ROUND(F11*1.02,1) -> 44 | E11: Intensité max (A) | F11: =ROUND(F10*(3/2),1) -> 43.1 | I11: Masse calculée de l'accu nu (g) | K11: 514.2857143 | L11: g | N11: Charge Alaire (g/dm²) | O11: =O10/O9 -> 59.52380952
B12: Puissance moteur restituée | C12: =ROUND(F10*Tension_Moyenne*0.98*(Rendement_Moteur/100),0) -> 354 | E12: Capacité min (mAh) | F12: =ROUNDUP((F11/F9)*1000,0) -> 1232 | I12: Masse réelle de l'accu choisi (g) | K12: 460 | N12: Cz aile choisi | O12: 0.3
B13: Kv | C13: 700 | E13: Masse accu mini nu (g) | F13: 198.6285714 | J13: Hélice inférieure | K13: hélice choisie | L13: hélice supérieure
B14: Régime théorique à vide | C14: =Tension_Moyenne*C13 -> 10360
B15: Régime standard en charge | C15: =C14*0.83 -> 8598.8 | E15: ESC | I15: Diamètre (pouces) | J15: =ROUNDDOWN(F19,0) -> 12 | K15: 12 | L15: =ROUNDUP(F19,0) -> 13 | O15: km/h | P15: m/s
C16: =(((C15*F20*2.54)/100)/1000)*60 -> 78.08138076 | E16: Intensité constante minimum | F16: =C10*1.2 -> 35.16 | I16: Pas (pouces) | J16: =ROUNDDOWN(F20,0) -> 5 | K16: 6 | L16: =ROUNDUP(F20,0) -> 6 | N16: Vitesse moy palier | O16: =(SQRT((2*9.81)/1.293)*SQRT((Charge_Alaire/10)/Cz_AileChoisi))*3.6 -> 62.46510461 | P16: =O16/3.6 -> 17.35141795
C17: =C16*0.8 -> 62.46510461 | I17: Rapport Pas/Diamètre | J17: =J16/J15 -> 0.4166666667 | K17: =K16/K15 -> 0.5 | L17: =L16/L15 -> 0.4615384615 | N17: Coefficient de portance max | O17: 0.8
B18: Mes hélices: | C18: K | E18: Hélice théorique | I18: Régime à vide | J18: =Tension_Moyenne*K4 -> 10360 | K18: =Tension_Moyenne*Kv_Choisi -> 10360 | L18: =Tension_Moyenne*K4 -> 10360 | N18: Vitesse décrochage | O18: =4.56*SQRT(Charge_Alaire/Czprofildecrochage) -> 39.33373688 | P18: =O18/3.6 -> 10.92603802
B19: les hélices vérifiées sont en rouge | E19: Diamètre (pouces) | F19: =(C12/(O3*F20*C15^3))^(1/4) -> 12.34860275 | I19: Régime standard | J19: =J18*0.83 -> 8598.8 | K19: =K18*0.83 -> 8598.8 | L19: =L18*0.83 -> 8598.8 | N19: Vitesse air brassé | O19: =Vitesse_Moyenne_Palier/0.8 -> 78.08138076 | P19: =O19/3.6 -> 21.68927243
E20: Pas (pouces) | F20: =Vitesse_Air_Brasse/((2.54*60/100/1000)*Regime_Standard) -> 5.958331606 | I20: Puissance à l'arbre (W) | J20: =Coefficient_K*(J16/12)*((J15/12)^4)*((J19/1000)^3) -> 264.9124088 | K20: =Coefficient_K*(Pas_Helice_Libre/12)*((Diametre_Helice_Libre/12)^4)*((K19/1000)^3) -> 317.8948906 | L20: =Coefficient_K*(L16/12)*((L15/12)^4)*((K19/1000)^3) -> 437.8566729
E21: Rapport Pas/Diamètre | F21: =F20/F19 -> 0.4825105906 | I21: Traction statique (g) | J21: =(28.35*(J16)*(J15)^3*J19^2*10^-10)*Coeff_Traction -> 1811.100295 | K21: =(28.35*(Pas_Helice_Libre)*(Diametre_Helice_Libre)^3*K19^2*10^-10)*Coeff_Traction -> 2173.320354 | L21: =(28.35*(L16)*(L15)^3*L19^2*10^-10)*Coeff_Traction -> 2763.185658
E22: Coeff de traction | F22: 1 | I22: Vitesse air brassé (km/h) | J22: =0.001524*$J$19*J16 -> 65.522856 | K22: =0.001524*$K$19*Pas_Helice_Libre -> 78.6274272 | L22: =0.001524*$L$19*L16 -> 78.6274272 | R22: Régime standard | S22: =K19*Gaz/100 -> 8598.8
B23: 6x4,5 rouge aliexpress | C23: 1.28 | E23: Régime à vide | F23: =Tension_Moyenne*KV -> 10360 | I23: Intensité nécessaire (A) | J23: =J20/Tension_Moyenne/0.98/Rendement_Moteur*100 -> 21.48797969 | K23: =K20/Tension_Moyenne/0.98/Rendement_Moteur*100 -> 25.78557563 | L23: =L20/Tension_Moyenne/0.98/Rendement_Moteur*100 -> 35.51609884 | N23: Gestion des Gaz (%) | O23: 100 | R23: Puissance à l'arbre (W) | S23: =Coefficient_K*(Pas_Helice_Libre/12)*((Diametre_Helice_Libre/12)^4)*((S22/1000)^3) -> 317.8948906
B24: 7x4 noire | C24: 1.27 | E24: Régime standard | F24: =F23*0.83 -> 8598.8 | I24: Puissance consommée (W) | J24: =J23*Tension_Moyenne -> 318.0220994 | K24: =K23*Tension_Moyenne -> 381.6265193 | L24: =L23*Tension_Moyenne -> 525.6382628 | N24: Tension moyenne (V) | O24: =Tension_Moyenne -> 14.8 | R24: Traction statique (g) | S24: =(28.35*(Pas_Helice_Libre)*(Diametre_Helice_Libre)^3*S22^2*10^-10)*Coeff_Traction -> 2173.320354
B25: SF E 8x3.8 | C25: 1.8 | E25: Puissance à l'arbre (W) | F25: =Coefficient_K*(F20/12)*((F19/12)^4)*((F24/1000)^3) -> 354 | I25: Tension moyenne (V) | J25: =J24/J23 -> 14.8 | K25: =K24/K23 -> 14.8 | L25: =L24/L23 -> 14.8 | N25: Intensité correspondante (A) | O25: =(O23/100)*K23 -> 25.78557563 | R25: Vitesse air brassé (km/h) | S25: =0.001524*$S$22*Pas_Helice_Libre -> 78.6274272
B26: GWS EP DD 8x4 | E26: Traction statique (g) | F26: =(28.35*(F20)*(F19)^3*F24^2*10^-10)*Coeff_Traction -> 2351.83521 | I26: Puissance massique (W/kg) | J26: =J20/($O$7/1000) -> 149.6680276 | K26: =K20/($O$7/1000) -> 179.6016331 | L26: =L20/($O$7/1000) -> 247.3766514 | N26: Puissance consommée (W) | O26: =O24*O25 -> 381.6265193 | R26: Intensité nécessaire (A) | S26: =S23/Tension_Moyenne/0.98/Rendement_Moteur*100 -> 25.78557563
B27: APC 8x4 E | C27: 1.3 | E27: Vitesse air brassé (km/h) | F27: =0.001524*F24*F20 -> 78.08138076 | I27: Vitesse de vol (km/h) | J27: =J22*0.8 -> 52.4182848 | K27: =K22*0.8 -> 62.90194176 | L27: =L22*0.8 -> 62.90194176 | N27: Traction statique (g) | O27: =(28.35*(Pas_Helice_Libre)*(Diametre_Helice_Libre)^3*O29^2*10^-10)*Coeff_Traction -> 2173.320354 | R27: Puissance consommée (W) | S27: =S26*Tension_Moyenne -> 381.6265193
B28: SF Electric Prop 8x4.5 | E28: Intensité nécessaire (A) | F28: =F25/Tension_Moyenne/0.98/Rendement_Moteur*100 -> 28.71418838 | I28: Autonomie plein gaz (mn) | J28: =Capacite_Accu_Choisie/1000/J23*60*0.95 -> 11.93690629 | K28: =Capacite_Accu_Choisie/1000/K23*60*0.95 -> 9.947421911 | L28: =Capacite_Accu_Choisie/1000/L23*60*0.95 -> 7.222076984 | N28: Puissance à l'arbre | O28: =O25*$O$24*0.98*(Rendement_Moteur/100) -> 317.8948906 | R28: Tension moyenne (V) | S28: =S27/S26 -> 14.8
B29: SF E 9x4.7 | C29: 1.24 | N29: Régime (T/mn) | O29: =(O28/(Diametre_Helice_Libre^4*O3*Pas_Helice_Libre))^(1/3) -> 8598.8 | R29: Puissance massique (W/kg) | S29: =S23/($O$7/1000) -> 179.6016331
B30: TP Slow Fly 10x4.7 GWS | C30: 1.4 | I30: Turnigy Aerodrive SK3 - 3548-700kv | N30: Vitesse air brassé | O30: =0.001524*$O$29*Pas_Helice_Libre -> 78.6274272 | P30: =O30/3.6 -> 21.840952 | R30: Vitesse de vol (km/h) | S30: =S25*0.8 -> 62.90194176
B31: GWS EP DD 10x6 | C31: 0.84 | I31: Kv annoncé | J31: 700 | K31: mesuré | N31: Vitesse de vol (km/h)(m/s) | O31: =O30*0.8 -> 62.90194176 | P31: =O31/3.6 -> 17.4727616 | R31: Autonomie plein gaz (mn) | S31: =Capacite_Accu_Choisie/1000/S26*60*0.95 -> 9.947421911
B32: APC 11x5.5 E | C32: 0.94 | E32: Hélices théoriques | F32: K | I32: 45A
B33: Beech wood 12x5 | C33: 0.65 | E33: toutes | F33: 1 | I33: 665W
B34: Cherry wood 12x6 | C34: 1 | E34: APC 9x5 | F34: 1.1 | I34: 177g | N34: =(2.54*60/100/1000) -> 0.001524
B35: GWS EP RD 12x6
B37: 9x5 Noire HK | C37: 1
